{"text_format":"1","workbook":"xlsx","n_sheets":1,"sheets":["生源统计"],"not_rendered":{"charts":0,"images":0,"macros":0,"external_links":0,"defined_names":0,"comments":0,"pivot_tables":0},"unopened":[],"bounds":{"document_bytes":16777216,"sheet_cells":100000,"rows_first":2000,"rows_last":500,"rows_between":2000,"halvings":0,"cell_chars":16384,"cell_head_chars":4096},"cells_cut":0,"cells_raw":0,"read":"whole","date_system":"1900"}

{"sheet":"生源统计","index":0,"n_rows":61,"n_cols":34,"rows_kept":61,"cut":false,"hidden":false,"merged":[[0,0,0,33],[2,5,2,33],[60,0,60,1],[4,0,6,0],[7,0,50,0],[51,0,59,0],[2,1,3,1],[2,2,3,2],[4,2,5,2],[7,2,9,2],[10,2,13,2],[14,2,19,2],[20,2,27,2],[28,2,39,2],[40,2,42,2],[43,2,46,2],[47,2,49,2],[51,2,58,2],[2,3,3,3],[2,4,3,4]]}
["沈阳工程学院2017届毕业生生源统计表"]
[]
["学历","专业名称","所属\n学院","学制","总计","省   份"]
[null,null,null,null,null,"北京","天津","河北","山西","内蒙","辽宁","吉林","黑龙","上海","江苏","浙江","安徽","福建","江西","山东","河南","湖北","湖南","广东","广西","海南","重庆","四川","贵州","云南","陕西","甘肃","青海","宁夏"]
["研究生","电气工程","研究\n生院",2.5,42,null,null,5,2,2,24,null,1,null,2,null,null,null,null,3,2,1]
[null,"动力工程",null,2.5,4,null,null,2,null,null,2]
[null,"合计",null,null,{"$f":"SUM(E5:E6)","v":46},{"$f":"SUM(F5:F6)","v":0},{"$f":"SUM(G5:G6)","v":0},7,2,2,26,0,1,0,2,0,0,0,0,3,2,1,0,0,0,0,0,0,0,0,0,0,0,0]
[null,"电气工程及其自动化","电力\n学院",4,{"$f":"SUM(F8:AH8)","v":287},1,3,6,4,6,143,10,6,2,3,16,5,3,2,6,9,2,4,3,4,2,2,5,11,4,3,14,5,3]
[null,"电气工程及其自动化(专升本)",null,2,99,0,null,3,1,2,76,null,3,null,null,2,1,1,null,null,6,1,null,null,null,null,null,2,null,null,null,null,1,0]
[null,"农业电气化",null,4,145,0,null,null,7,null,125,null,null,null,null,null,null,null,null,null,5,null,null,null,null,null,null,null,5,null,null,3,null,0]
[null,"能源与动力工程","能源\n与动力\n学院",4,{"$f":"SUM(F11:AH11)","v":207},2,2,5,9,9,77,8,6,null,5,5,5,4,3,4,12,2,2,3,3,4,1,7,10,3,2,10,2,2]
[null,"能源与动力工程(专升本)",null,2,72,0,null,null,null,2,65,1,2,null,1,1,null,null,null,null,null,null,null,null,null,null,null,null,null,null,null,null,null,0]
[null,"建筑环境与能源应用工程",null,4,65,0,null,null,3,null,46,null,null,null,null,null,1,null,null,null,5,null,null,1,null,null,1,null,3,1,null,4,null,0]
[null,"核工程与核技术",null,4,39,0,null,null,null,null,25,null,null,null,2,1,3,2,null,1,null,null,null,1,2,2,null,null,null,null,null,null,null,0]
[null,"自动化","自动化\n学院",4,183,1,2,2,2,null,128,1,2,1,1,1,4,4,4,3,5,1,1,1,2,2,null,2,4,2,2,2,1,2]
[null,"自动化(专升本）",null,2,61,0,null,1,null,1,44,2,1,null,null,1,1,2,2,1,2,null,null,1,null,null,1,null,null,null,null,null,null,1]
[null,"测控技术与仪器",null,4,59,0,null,null,2,null,44,null,null,null,null,null,null,null,1,null,5,null,null,null,null,null,null,1,3,1,null,2,null,0]
[null,"电子信息工程",null,4,53,0,1,null,3,null,36,null,null,null,null,null,1,null,null,null,6,null,null,1,2,null,null,null,2,null,null,1,null,0]
[null,"电子信息工程(专升本）",null,2,33,0,null,null,2,2,21,1,1,null,null,3,null,1,null,null,1,null,null,1,null,null,null,null,null,null,null,null,null,0]
[null,"通信工程",null,4,61,0,null,null,4,null,43,null,null,2,null,null,null,null,null,null,6,null,null,null,1,null,null,2,1,null,null,2,null,0]
[null,"计算机科学与技术","信息\n学院",4,64,0,2,null,2,null,41,3,1,null,null,null,null,null,null,null,5,null,null,null,4,null,null,2,3,null,null,1,null,0]
[null,"计算机科学与技术（中职本）",null,4,65,null,null,null,null,null,65]
[null,"计算机科学与技术（专升本）",null,2,57,0,null,1,null,null,51,1,null,null,1,1,1,null,null,1,null,null,null,null,null,null,null,null,null,null,null,null,null,0]
[null,"网络工程",null,4,29,0,null,null,2,null,19,null,null,null,null,null,null,null,null,null,2,null,null,null,1,null,null,null,2,null,1,2,null,0]
[null,"软件工程",null,4,60,2,null,null,3,null,39,2,2,null,null,null,2,null,null,null,2,null,null,null,2,null,null,2,3,null,null,1,null,0]
[null,"软件工程（专升本）",null,2,35,0,null,null,null,null,30,null,2,null,null,null,null,null,null,1,1,null,null,null,null,null,null,1,null,null,null,null,null,0]
[null,"物联网工程",null,4,52,2,null,null,2,null,31,null,null,2,null,null,null,null,null,null,2,1,2,1,null,null,null,2,4,null,null,1,2,0]
[null,"数字媒体技术",null,4,33,0,null,null,null,null,20,null,null,1,null,null,1,null,null,null,2,null,null,null,null,null,null,2,3,null,null,2,2,0]
[null,"财务管理","经济\n与管理\n学院",4,55,0,null,null,3,null,40,null,null,null,null,null,null,null,null,null,1,null,null,null,2,null,null,null,2,null,null,3,4,0]
[null,"财务管理（专升本）",null,2,60,0,null,2,null,2,48,1,2,null,null,null,1,null,null,1,null,null,null,null,null,null,null,2,null,null,null,1,null,0]
[null,"物流管理",null,4,29,0,null,null,2,null,17,null,null,null,null,null,null,null,null,null,1,null,null,null,2,null,null,null,3,null,null,2,2,0]
[null,"物流管理（中职本）",null,4,29,null,null,null,null,null,29]
[null,"工程管理",null,4,56,0,null,null,3,null,39,null,null,null,null,null,null,null,null,null,4,null,1,null,2,null,null,null,4,null,null,2,1,0]
[null,"工程管理（中职本）",null,4,69,null,null,null,null,null,69]
[null,"工业工程",null,4,32,0,null,null,3,null,24,null,null,null,null,null,null,null,null,null,2,null,null,null,null,null,null,null,2,null,null,1,null,0]
[null,"房地产开发与管理",null,4,59,0,null,null,3,null,42,null,null,null,null,null,2,null,null,null,2,1,1,null,2,null,null,null,2,null,null,2,2,0]
[null,"物业管理",null,4,56,0,null,null,3,null,39,null,null,null,null,null,null,null,null,null,4,null,null,null,4,null,null,null,2,null,null,4,null,0]
[null,"物业管理（专升本）",null,2,70,0,null,3,1,null,63,1,null,null,null,1,null,null,null,null,null,null,null,1,null,null,null,null,null,null,null,null,null,0]
[null,"保险学",null,4,65,0,null,null,null,null,65,null,null,null,null,null,null,null,null,null,null,null,null,null,null,null,null,null,null,null,null,null,null,0]
[null,"保险学（专升本）",null,2,31,0,null,2,null,2,23,1,2,null,null,null,null,null,null,null,null,null,null,1,null,null,null,null,null,null,null,null,null,0]
[null,"新能源科学与工程","新能源\n学院",4,103,0,null,10,null,16,37,6,13,null,3,null,null,null,null,2,null,null,null,null,null,null,null,2,null,2,2,6,2,2]
[null,"应用化学",null,4,33,0,null,null,2,null,20,null,null,null,null,null,null,null,2,null,2,2,null,null,1,null,null,null,2,null,null,2,null,0]
[null,"能源化学工程",null,4,39,0,null,null,2,null,22,2,2,null,null,null,null,null,null,null,4,null,null,null,null,null,null,null,5,null,null,2,null,0]
[null,"机械设计制造及其自动化","机械\n学院",4,66,0,null,null,3,null,46,1,null,null,null,null,null,null,null,2,4,1,2,null,null,null,null,2,2,null,2,1,null,0]
[null,"机械设计制造及其自动化（中职本）",null,4,67,null,null,null,null,null,67]
[null,"机械设计制造及其自动化（专升本）",null,2,69,0,null,2,1,null,55,1,2,null,null,1,1,1,null,2,1,null,null,1,null,null,1,null,null,null,null,null,null,0]
[null,"机械电子工程",null,4,35,0,null,null,2,null,23,null,null,null,null,null,null,null,null,null,3,null,null,null,2,null,null,null,3,null,null,2,null,0]
[null,"法学","文法\n学院",4,58,0,null,2,2,null,38,null,null,null,null,null,null,null,null,null,4,null,null,null,4,null,null,2,4,null,null,2,null,0]
[null,"社会工作",null,4,58,0,null,2,2,null,38,null,null,null,null,null,1,null,null,null,4,null,null,null,3,null,null,2,3,null,null,3,null,0]
[null,"商务英语",null,4,57,0,null,null,null,null,57,null,null,null,null,null,null,null,null,null,null,null,null,null,null,null,null,null,null,null,null,null,null,0]
[null,"合计",null,null,{"$f":"SUM(E8:E50)","v":2955},8,10,41,78,42,2070,42,47,8,16,33,30,18,14,24,112,11,13,16,43,10,6,38,88,13,12,78,24,10]
["专科","发电厂及电力系统","国际\n教育\n学院",3,{"$f":"SUM(F52:AH52)","v":72},0,null,2,null,9,44,8,7,null,null,null,null,null,null,1,null,null,1,null,null,null,null,null,null,null,null,null,null,0]
[null,"电厂热能动力装置",null,3,{"$f":"SUM(F53:AH53)","v":67},0,null,2,1,5,47,5,6,null,null,null,null,1,null,null,null,null,null,null,null,null,null,null,null,null,null,null,null,0]
[null,"电力系统继电保护与自动化",null,3,49,0,null,1,null,4,38,3,3,null,null,null,null,null,null,null,null,null,null,null,null,null,null,null,null,null,null,null,null,0]
[null,"高压输配电线路施工运行与维护",null,3,29,0,null,1,null,4,20,2,2,null,null,null,null,null,null,null,null,null,null,null,null,null,null,null,null,null,null,null,null,0]
[null,"供用电技术",null,3,29,0,null,null,null,4,18,2,2,null,null,1,null,null,null,2,null,null,null,null,null,null,null,null,null,null,null,null,null,0]
[null,"火电厂集控运行",null,3,30,0,null,null,null,7,13,4,4,null,null,null,null,null,null,2,null,null,null,null,null,null,null,null,null,null,null,null,null,0]
[null,"生产过程自动化技术",null,3,30,0,null,null,null,4,20,2,2,null,null,null,null,null,null,2,null,null,null,null,null,null,null,null,null,null,null,null,null,0]
[null,"旅游英语",null,3,21,0,null,1,null,null,17,null,null,null,null,2,null,1,null,null,null,null,null,null,null,null,null,null,null,null,null,null,null,0]
[null,"合计",null,null,{"$f":"SUM(E52:E59)","v":327},{"$f":"SUM(F52:F59)","v":0},0,7,1,37,217,26,26,0,0,3,0,2,0,7,0,0,1,0,0,0,0,0,0,0,0,0,0,0]
["总计",null,null,null,{"$f":"E60+E51+E7","v":3328},{"$f":"F60+F51+F7","v":8},10,55,81,81,2313,68,74,8,18,36,30,20,14,34,114,12,14,16,43,10,6,38,88,13,12,78,24,10]